Cogmind - Beta 14 @@@ ROGUE MODE // 2024.08.26 @ 18:00:29 Player: YenYu Result: Self-destructed Performance ------------- Evolutions (2) 1000 Regions Visited (4) 800 Robots Destroyed (26) 130 Value Destroyed (667) 667 Prototype IDs (0) 0 Alien Tech Used (0) 0 Bonus (0) 0 TOTAL SCORE: 2597 Bonus ------- None Cogmind --------- Core Integrity 457/550 Matter 19/300 Energy 250/250 System Corruption 0% Temperature Cool (0) Movement Walking (470) Ox5 Location -8/Materials Parts ------- > --- POWER (1) -------- Ion Engine > --- PROPULSION (4) --- Aluminum Leg > --- UTILITY (4) ------ Improved Heat Sink High-capacity Storage Unit Improved Sensor Array Improved Signal Interpreter > --- WEAPON (2) ------- Flak Cannon Flak Cannon > --- INVENTORY (20) --- Light Ion Engine Improved Ion Engine High-capacity Matter Pod (0) Shield Generator High-powered Tractor Beam Assault Cannon EMP Blaster Peak State ------------ > --- POWER ------------ Ion Engine > --- PROPULSION ------- Aluminum Leg Aluminum Leg Aluminum Leg Carbon-fiber Leg > --- UTILITY ---------- Improved Heat Sink Improved Sensor Array Improved Signal Interpreter Reaction Control System > --- WEAPON ----------- Assault Cannon Flak Cannon > --- INVENTORY -------- Aluminum Leg High-capacity Matter Pod High-powered Tractor Beam Flak Cannon EMP Blaster [Rating: 26] Favorites ----------- Power Ion Engine Engine Ion Engine Power Core Light Nuclear Core Propulsion Aluminum Leg Treads Light Treads Leg Aluminum Leg Utility Sensor Array Device Sensor Array Storage Small Storage Unit Processor Signal Interpreter Weapon Flak Cannon Energy Gun Small Laser Energy Cannon Heavy Particle Cannon Ballistic Gun Light Assault Rifle Ballistic Cannon Flak Cannon Build | -11 -10 -9 -9 -8 ------- Run | Yrd Mat Mat Min Mat Slots Evolved 4 | . . 2 . 2 Power . | . . . . . Propulsion 2 | . . 2 . . Utility 2 | . . . . 2 Weapon . | . . . . . Parts Attached 28 | 6 2 4 . 16 Power 3 | 1 . . . 2 Engine 2 | 1 . . . 1 Core 1 | . . . . 1 Reactor . | . . . . . Propulsion 6 | 2 . 2 . 2 Treads 1 | . . 1 . . Leg 5 | 2 . 1 . 2 Wheel . | . . . . . Hover . | . . . . . Flight . | . . . . . Utility 10 | 1 2 . . 7 Device 5 | . 1 . . 4 Storage 3 | 1 . . . 2 Processor 2 | . 1 . . 1 Hackware . | . . . . . Protection . | . . . . . Artifact . | . . . . . Weapon 9 | 2 . 2 . 5 Energy Gun 1 | 1 . . . . Energy Cannon 1 | . . . . 1 Ballistic Gun 1 | 1 . . . . Ballistic Cannon 6 | . . 2 . 4 Launcher . | . . . . . Special Weapon . | . . . . . Impact Weapon . | . . . . . Slashing Weapon . | . . . . . Piercing Weapon . | . . . . . Special Melee Weapon . | . . . . . Unidentified Prototypes . | . . . . . Parts Lost 6 | . . . . 6 Power 1 | . . . . 1 Propulsion 4 | . . . . 4 Utility 1 | . . . . 1 Weapon . | . . . . . Highest Loss Streak 2 | . . . . 2 To Critical Strikes . | . . . . . Average Slot Usage (%) 94 | . 95 91 100 92 Engine 10 | . 14 11 11 8 Treads 2 | . . 3 11 1 Leg 31 | . 28 33 33 32 Device 14 | . 9 11 11 19 Storage 5 | . 13 . . 2 Processor 7 | . . 11 11 9 Energy Gun 4 | . 14 4 . . Ballistic Gun 4 | . 14 4 . . Ballistic Cannon 12 | . . 13 22 17 Peak Build Rating 26 | 6 7 13 13 26 Average Rating 14 | 3 6 10 13 20 On Entrance 7 | . 6 7 13 13 Naked Turns . | . . . . . Heaviest Build 59 | 12 13 16 16 59 Greatest Support 45 | 20 20 30 30 45 Greatest Overweight (x) 2 | . . . . 2 Average Overweight (x) . | . . . . . Largest Inventory Capacity 20 | 8 8 5 5 20 Average Capacity 7 | 6 7 5 5 9 Most Carried 8 | 5 8 5 5 7 Average Carried 4 | 2 5 4 5 4 Final Capacity 20 | 8 5 5 5 20 Final Carried 7 | 2 5 5 5 7 Class Distribution -------------------- 86% | Mutant 13% | Scavenger-Mutant Dominant Class ---------------- Mutant | -10/Materials Mutant | -9/Materials Mutant | -9/Mines Mutant | -8/Materials Resources | -11 -10 -9 -9 -8 ----------- Run | Yrd Mat Mat Min Mat Matter Collected 1090 | 212 163 . . 715 Remotely 359 | . . . . 359 Salvage Created 680 | . 34 69 . 577 Parts 45 | . 5 7 . 33 Haulers Intercepted 2 | . . . . 2 Recyclers Shooed 1 | 1 . . . . Parts Field Recycled . | . . . . . Retrieved Matter . | . . . . . Parts Self-Destructed . | . . . . . Prevented . | . . . . . Kills | -11 -10 -9 -9 -8 ------- Run | Yrd Mat Mat Min Mat Combat Hostiles Destroyed 16 | . 2 1 . 13 Guns 2 | . 2 . . . Cannons 14 | . . 1 . 13 Classes Destroyed 11 | . 1 2 . 8 Builder 2 | . . . . 2 Hauler 2 | . . . . 2 Recycler 2 | . . . . 2 Operator 1 | . . . . 1 Watcher 3 | . . 1 . 2 Swarmer 6 | . 2 . . 4 Grunt 3 | . . . . 3 Brawler 1 | . . . . 1 Duelist 1 | . . . . 1 Sentry 3 | . . 1 . 2 Hunter 2 | . . . . 2 Best Kill Streak 8 | . 2 1 . 8 Combat Bots Only 4 | . 2 1 . 4 Max Kills in Single Turn 2 | . 1 1 . 2 Gunslinging . | . . . . . Exploded . | . . . . . Melee . | . . . . . Uniques/NPCs Destroyed . | . . . . . Combat | -11 -10 -9 -9 -8 -------- Run | Yrd Mat Mat Min Mat Hostile Shots Fired 132 | . 6 6 . 120 Missed 43 | . 1 . . 42 Damage Taken 1052 | . 38 92 . 922 Core 140 | . 15 32 . 93 Absorbed by Shields . | . . . . . Core Remaining (%) 95 | 100 94 . 92 . Volleys Fired 94 | 1 4 5 . 84 Largest 2 | 1 2 2 . 2 Hottest 119 | 40 60 88 . 119 Shots Fired 162 | 1 8 10 . 143 Gun 13 | 1 8 4 . . Cannon 149 | . . 6 . 143 Launcher . | . . . . . Special . | . . . . . Kinetic 145 | . 4 8 . 133 Thermal 17 | 1 4 2 . 10 Explosive . | . . . . . Electromagnetic . | . . . . . Robot Hit Streak 4 | 1 3 2 . 4 Robot Miss Streak 12 | . 1 2 . 12 Penetration Max . | . . . . . Secondary Targets . | . . . . . Shots Hit Robots 94 | 1 6 5 . 82 Core Hits 77 | . 2 3 . 72 Critical Kills . | . . . . . Critical Parts Destroyed . | . . . . . Critical Strikes 1 | . . . . 1 Blast 1 | . . . . 1 Melee Attacks . | . . . . . Impact . | . . . . . Slashing . | . . . . . Piercing . | . . . . . Sneak Attacks . | . . . . . Combat Hostiles . | . . . . . Follow-up Attacks . | . . . . . Damage Inflicted 1543 | 11 57 88 . 1387 Guns 87 | 11 57 19 . . Cannons 1378 | . . 69 . 1309 Explosions 78 | . . . . 78 Melee . | . . . . . Ramming . | . . . . . Kinetic 1285 | . 24 77 . 1184 Thermal 180 | 11 33 11 . 125 Explosive 78 | . . . . 78 Electromagnetic . | . . . . . Impact . | . . . . . Slashing . | . . . . . Piercing . | . . . . . Highest Corruption . | . . . . . Average Corruption . | . . . . . Corruption Purged . | . . . . . Corruption Blocked . | . . . . . Overload Shots . | . . . . . Overflow Damage 13 | . . . . 13 Projectiles . | . . . . . Explosions 13 | . . . . 13 Melee . | . . . . . Knockbacks 28 | . . . . 28 Impact . | . . . . . Kinetic 28 | . . . . 28 Secondary . | . . . . . Self-Inflicted Damage 48 | . . . . 48 Shots 1 | . . . . 1 Rammed . | . . . . . Targets Rammed . | . . . . . Kicked . | . . . . . Crushed . | . . . . . Highest Temperature 233 | . 20 54 . 233 Average Temperature 71 | . 15 22 . 85 Received Heat Transfer 243 | . . 27 . 216 Siege Activations . | . . . . . Robots Corrupted . | . . . . . Combat Hostiles . | . . . . . Parts Fried . | . . . . . Impact Corruptions . | . . . . . Robots Melted . | . . . . . Combat Hostiles . | . . . . . Parts Melted 1 | . 1 . . . Heat Transferred 310 | 25 75 25 . 185 Parts Sabotaged . | . . . . . Parts Stolen . | . . . . . Parts Stripped . | . . . . . Power Chain Reactions . | . . . . . Alert | -11 -10 -9 -9 -8 ------- Run | Yrd Mat Mat Min Mat Peak Influence 309 | . 50 101 39 309 Initial 39 | . . 12 39 14 Average 86 | . 6 52 39 158 Maximum Alert Level 1 | . . . . 1 Low Security (%) 85 | 100 100 100 100 69 Level 1 14 | . . . . 30 Level 2 . | . . . . . Level 3 . | . . . . . Level 4 . | . . . . . Level 5 . | . . . . . High Security . | . . . . . Max Security . | . . . . . Squads Dispatched 8 | . 1 . . 7 Investigation 1 | . . . . 1 Extermination . | . . . . . Reinforcement 3 | . 1 . . 2 Assault . | . . . . . Garrison 4 | . . . . 4 Intercept . | . . . . . Searches Triggered . | . . . . . Construction Impeded . | . . . . . Haulers Reinforced . | . . . . . Active Scanning Responses . | . . . . . Cargo Convoy Interrupts . | . . . . . Stealth | -11 -10 -9 -9 -8 --------- Run | Yrd Mat Mat Min Mat Distress Signals 6 | . . . . 6 Communications Jammed . | . . . . . Distress Signals . | . . . . . Times Spotted 33 | . 4 4 . 25 Peak Tracking Total 5 | . 3 2 . 5 Tactical Retreats 2 | . 1 . . 1 Traps | -11 -10 -9 -9 -8 ------- Run | Yrd Mat Mat Min Mat Traps Triggered . | . . . . . Indirectly . | . . . . . Trap Hack Attempts . | . . . . . Triggered . | . . . . . Disarmed . | . . . . . Reprogrammed 7 | . . . . 7 Reused 2 | . . . . 2 Traps Extracted . | . . . . . Installed . | . . . . . Triggered 2 | . . . . 2 Machines | -11 -10 -9 -9 -8 ---------- Run | Yrd Mat Mat Min Mat Machines Disabled 3 | . . . . 3 Max in Single Turn 1 | . . . . 1 Machines Repaired . | . . . . . Machines Dismantled . | . . . . . Machines Sabotaged . | . . . . . Overloaded Fab Kills . | . . . . . Hacking | -11 -10 -9 -9 -8 --------- Run | Yrd Mat Mat Min Mat Machines Accessed 6 | . . 3 . 3 Terminals 4 | . . 2 . 2 Fabricators . | . . . . . Repair Stations . | . . . . . Recycling Units 2 | . . 1 . 1 Scanalyzers . | . . . . . Garrison Access . | . . . . . Total Hacks 15 | . . 7 . 8 Successful 10 | . . 4 . 6 Failed 5 | . . 3 . 2 Catastrophic 1 | . . 1 . . Database Lockouts . | . . . . . Manual 2 | . . . . 2 Terminals 11 | . . 5 . 6 Fabricators . | . . . . . Repair Stations . | . . . . . Recycling Units 4 | . . 2 . 2 Scanalyzers . | . . . . . Garrison Access . | . . . . . Terminal Hacks 7 | . . 2 . 5 Record 1 | . . . . 1 Alert Level 1 | . . . . 1 Reprogram Traps 2 | . . . . 2 Investigation Status 1 | . . 1 . . Assault Status 1 | . . . . 1 Hauler Manifests 1 | . . 1 . . Fabricator Hacks . | . . . . . Repair Station Hacks . | . . . . . Recycling Unit Hacks 3 | . . 2 . 1 Report Inventory 1 | . . 1 . . Retrieve Matter 1 | . . . . 1 Retrieve Components 1 | . . 1 . . Scanalyzer . | . . . . . Garrison Access Hacks . | . . . . . Unauthorized Hacks . | . . . . . Terminals . | . . . . . Fabricators . | . . . . . Repair Stations . | . . . . . Recycling Units . | . . . . . Scanalyzers . | . . . . . Garrison Access . | . . . . . Data Cores Recovered 1 | . . . . 1 Used 1 | . . . . 1 Hacking Detections 4 | . . 3 . 1 Full Trace Events . | . . . . . Feedback Events . | . . . . . Feedback Blocked . | . . . . . Robot Schematics Acquired . | . . . . . Robots Built . | . . . . . Authchips . | . . . . . Time . | . . . . . Total Robot Build Rating . | . . . . . Part Schematics Acquired . | . . . . . Parts Built . | . . . . . Authchips . | . . . . . Time . | . . . . . Total Part Build Rating . | . . . . . Parts Repaired . | . . . . . Time . | . . . . . Parts Recycled . | . . . . . Recycled Matter . | . . . . . Retrieved Matter . | . . . . . Retrieved Components 3 | . . 3 . . Parts Scanalyzed . | . . . . . Part Schematics Acquired . | . . . . . Parts Damaged . | . . . . . Bothacking | -11 -10 -9 -9 -8 ------------ Run | Yrd Mat Mat Min Mat Used RIF Installer . | . . . . . Robots Hacked . | . . . . . Non-combat . | . . . . . Combat . | . . . . . Robot Hacks Applied . | . . . . . Relay Couplers Released . | . . . . . Fabnet Peak Effective % . | . . . . . Robots Rewired . | . . . . . Allies Hacked . | . . . . . Hacks Repelled . | . . . . . Allies | -11 -10 -9 -9 -8 -------- Run | Yrd Mat Mat Min Mat Total Allies . | . . . . . Largest Group . | . . . . . Highest-Rated Group . | . . . . . Highest-Rated Ally . | . . . . . Total Orders . | . . . . . Ally Attacks . | . . . . . Total Damage . | . . . . . Kills . | . . . . . Allies Corrupted . | . . . . . Allies Melted . | . . . . . Intel | -11 -10 -9 -9 -8 ------- Run | Yrd Mat Mat Min Mat Robot Analysis Total . | . . . . . Derelict Logs Recovered 1 | . . . 1 . Drone Launches . | . . . . . Drone Recoveries . | . . . . . Exploration | -11 -10 -9 -9 -8 ------------- Run | Yrd Mat Mat Min Mat Turns Passed 1769 | 67 499 123 233 847 Spaces Moved 1068 | 47 350 82 194 395 Core 9 | 9 . . . . Treads . | . . . . . Legs 1059 | 38 350 82 194 395 Wheels . | . . . . . Hover . | . . . . . Flight . | . . . . . Fastest Speed 50 | 50 120 120 120 120 Average Speed 125 | 106 120 120 120 136 Slowest Speed 260 | 120 120 120 120 260 Overloaded Moves . | . . . . . Propulsion Burnouts . | . . . . . Robots Hopped . | . . . . . Cave-ins Triggered . | . . . . . Exploration Rate (%) 29 | 3 57 7 39 40 Regions Visited 4 Branch Regions 1 Pre-discovered Areas . | . . . . . Known Exits Taken 3 | . 1 1 1 . Unknown Exits Taken 1 | 1 . . . . Scrap Searched . | . . . . . Spaces Dug 18 | . . . . 18 Terrain Destroyed 41 | . . 2 . 39 Melee . | . . . . . Projectile 28 | . . 2 . 26 AOE 13 | . . . . 13 Terrain Rammed . | . . . . . Walls Destroyed . | . . . . . Machines Disabled . | . . . . . Actions | -11 -10 -9 -9 -8 --------- Run | Yrd Mat Mat Min Mat Total 1337 | 63 424 97 194 559 Wait 100 | . 53 . 1 46 Move 1064 | 46 349 81 193 395 Hop . | . . . . . Pick Up 31 | 9 10 3 . 9 Fast Attach 9 | . . 3 . 6 Attach 12 | 6 1 1 . 4 Detach 1 | . . . . 1 Swap 7 | . 1 . . 6 Drop 19 | 1 6 4 . 8 Fire 94 | 1 4 5 . 84 Melee . | . . . . . Ram . | . . . . . Kick . | . . . . . Crush . | . . . . . Escape Stasis . | . . . . . Rewire . | . . . . . Trap . | . . . . . Miscellaneous . | . . . . . Route ------- -11/Scrapyard -10/Materials -9/Materials -9/Mines (discovered 2 exits: *Mat / *Zio) -8/Materials (discovered 1 exit: *Fac) History --------- Turn | Location | Event 9 | -11/Scrapyard | Discovered new exit (range 15) 68 | -11/Scrapyard | Entered Materials 315 | -10/Materials | Build established: Mutant 330 | -10/Materials | Discovered new exit (range 13) 566 | -10/Materials | Identified exit to Materials 567 | -10/Materials | Entered another Materials area 567 | -9/Materials | Evolved 2 slots: Propulsion x2 568 | -9/Materials | Discovered new exit (range 7) 576 | -9/Materials | Identified exit to Mines 690 | -9/Materials | Entered Mines 691 | -9/Mines | A Derelict revealed a hidden shortcut to a safe place 693 | -9/Mines | Identified exit to Zion 703 | -9/Mines | Met a Derelict bent on vengeance 733 | -9/Mines | Learned Materials trap positions 882 | -9/Mines | Discovered new exit (range 6) 888 | -9/Mines | Identified exit to Materials 923 | -9/Mines | Entered Materials 923 | -8/Materials | Evolved 2 slots: Utility x2 924 | -8/Materials | Loaded intel: 29 trap records 1070 | -8/Materials | Garrison activated, responded to threat 1191 | -8/Materials | Garrison activated, responded to threat 1259 | -8/Materials | Discovered new exit (range 16) 1279 | -8/Materials | Identified exit to Factory 1770 | -8/Materials | Self-destructed Last Messages --------------- 01683_ U-05 Engineer lays Concrete. 01715_ Connecting with Terminal... >>Traps(Reprogram) Reprogrammed 1 Shock Trap. >>Traps(Reprogram) Reprogrammed 6 Alarm Traps. 01738_ Connecting with Recycling Unit... 01745_ K-01 Serf cleans the Neutrino Reactor. 01745_ W-25 Informer sends out distress signal. 01749_ K-01 Serf cleans the Neutrino Reactor. 01758_ G-47 Trooper triggered Alarm Trap. 01758_ An alarm sounds. 01758_ ALERT: Alarm triggered, dispatching investigation squad. 01762_ Carbon-fiber Leg destroyed. 01762_ Critical hit (Burn: +37). 01765_ K-01 Serf cleans the Neutrino Reactor. 01765_ U-05 Engineer lays Concrete. 01768_ Aluminum Leg destroyed. Map ----- +----------------------------------------------------+ | ???????????????????????# !! # #?????? | | ???????????????????????# !! [ #| / "T" #?????? | | ???????????????????????# !! ] # """ #?????? | | ???????????????????????# #/ #?????? | | ???????????????????????#####+########+######?????? | | ????????????????????????# = #???????? | | ????????????????????????# #???????? | | ????????????????????????# ! #???????? | | ????????????????????????# ! #???????? | | ????????????????????????# ! #???????? | | ????????????????????##### #???????? | | ????????????????????#"""# #???????? | | ???????????##########"R"# #####+##+###?????? | | ?????????? ^ #" "# # #?????? | | ????????????????# ^ ## !#?????? | | ????????????????# ^ ##+##+## #?????? | | ????????????????# """ #??????# ! ##????? | | ????????????????# """ #??????###+############# | | ????????????????#w """o #??????#?# # " ! | | ????????????????# u #????? #?# "! # "" | | ????????????????# u #???? ??# # """ #""" | | ????????????????#" """ #??? ???# # """ #""" | | ????????????????#T k""" ! ###;###### # #""" | | ????????#########" """ ^^ # """ # | | ????????? u g g ^^ + """ ###### | | ?????????????####] @ ^^ # """ # | | ????????????????# ###/############ # """ | | ????????????????###+### #?????# " " # """ | | ????????????????# #"" ]#?????# "R" # """ | | ????????????????# """ #"T #?????# """ # | | ????????????????# "Y" #"" !#?????# ? # """ | | ????????????????# # #?????##???### """ | | ????????????????# # """ #???????????# """ | | ????????????????# # """ #???????????## | | ????????????????# !# """ #????????????#[ """ | | ????????????????####### #????????????# """ | | ??????????????????????##########????????????# """ | | ????????????????????????????????????????????# | | ????????????????????????????????????????????###### | | ?????????????????????????????????????????????????? | | ?????????????????????????????????????????????????? | | ?????????????????????????????????????????????????? | | ?????????????????????????????????????????????????? | | ?????????????????????????????????????????????????? | | ?????????????????????????????????????????????????? | | ?????????????????????????????????????????????????? | | ?????????????????????????????????????????????????? | | ?????????????????????????????????????????????????? | | ?????????????????????????????????????????????????? | | ?????????????????????????????????????????????###+# | +----------------------------------------------------+ Best States ------------- Heat Dissipation 45 Energy Generation 14 Energy Capacity 250 Matter Stores 300 Matter Capacity 500 Sight Range 16 Robot Scan Range 15 Terrain Scan Density 10 Evasion (%) 63 Item Schematics ----------------- None Robot Schematics ------------------ None Fabricated ------------ Nothing Alien Tech Used ----------------- None Achievements -------------- None Challenges ------------ None Game ------ Seed GhostRefineryPrototype Manual? 0 Play Time 00:59:27 Cumulative 28.8 hours Start 2024.08.23 @ 12:26:13 End 2024.08.26 @ 18:00:29 Sessions 3 Manual Loads 0 Difficulty Rogue Special Mode None Game No. 36 Rogue 36 Adventurer 0 Explorer 0 Win Type - Total 0 Types 0/0/0/0/0/0/0/0/0 Lore% 8 Gallery% 26 Achievement% 22 Wizard Run 0 Options --------- Layout 1 ASCII 0 Keyboard 0 Movement Mouse Keybinds 0 Fullscreen 1 Font 32/Tamsyn Map View 50x35 Zoom Use 0% Tactical HUD 1 Map Filters NONE Filters NONE Steam 1 RUN: 38a47cf7-0cc8-4b0e-84c4-3b6c1f0a9c9d